[Event "16th Deltalift Open 2019"]
[Site "Halmstad"]
[Date "2019.06.01"]
[Round "7.7"]
[White "Crevatin, Leo"]
[Black "Rydstrom, Tom"]
[Result "1/2-1/2"]
[ECO "A40"]
[WhiteElo "2210"]
[BlackElo "2365"]
[Annotator "ChessBase"]
[PlyCount "133"]
[EventDate "2019.05.30"]
[EventType "swiss"]
[EventCountry "SWE"]
[SourceTitle "playchess.com"]
[Source "ChessBase"]
[SourceQuality "1"]
[TimeControl "40/5400+30:1800+30"]

1. d4 {[%emt 0:00:00]} g6 {[%emt 0:04:56]} 2. c4 {[%emt 0:00:00]} Bg7 {[%emt 0:00:03]} 3. Nc3 {[%emt 0:00:00]} c5 {[%emt 0:00:33]} 4. d5 {[%emt 0:00:00]} f5 {[%emt 0:00:04]} 5. e4 {[%emt 0:00:00]} d6 {[%emt 0:02:46]} 6. exf5 {[%emt 0:01:46]} Bxf5 {[%emt 0:00:13]} 7. Bd3 {[%emt 0:02:09]} Qd7 {[%emt 0:02:23]} 8. Nge2 {[%emt 0:00:23]} Na6 {[%emt 0:00:13]} 9. O-O {[%emt 0:03:50]} Nh6 {[%emt 0:05:07]} 10. Bxh6 {[%emt 0:08:08]} Bxh6 {[%emt 0:00:04]} 11. Bxf5 {[%emt 0:00:53]} Qxf5 {[%emt 0:01:06]} 12. Ng3 {[%emt 0:00:30]} Qf7 {[%emt 0:07:43]} 13. Qa4+ {[%emt 0:01:38]} Kf8 {[%emt 0:02:20]} 14. f4 {[%emt 0:03:38]} Kg7 {[%emt 0:01:24]} 15. f5 {[%emt 0:01:57]} Qe8 {[%emt 0:00:13]} 16. Qc2 {[%emt 0:01:20]} Qd7 {[%emt 0:07:51]} 17. Rae1 {[%emt 0:03:27]} Rhf8 {[%emt 0:00:07]} 18. Qe4 {[%emt 0:05:25]} Rae8 {[%emt 0:00:21]} 19. Re2 {[%emt 0:03:02]} Nc7 {[%emt 0:04:37]} 20. Qh4 {[%emt 0:12:50]} b5 {[%emt 0:12:49]} 21. Rfe1 {[%emt 0:03:33]} Rf7 {[%emt 0:00:23]} 22. Nxb5 {[%emt 0:11:11]} Nxb5 {[%emt 0:11:27]} 23. cxb5 {[%emt 0:00:02]} Qb7 {[%emt 0:02:15]} 24. Qc4 {[%emt 0:02:19]} gxf5 {[%emt 0:01:46]} 25. Qd3 {[%emt 0:02:14]} Kh8 {[%emt 0:07:52]} 26. Nxf5 {[%emt 0:00:35]} Bf4 {[%emt 0:00:02]} 27. Re6 {[%emt 0:03:36]} Qd7 {[%emt 0:08:27]} 28. Qe4 {[%emt 0:01:25]} Be5 {[%emt 0:00:38]} 29. g4 {[%emt 0:09:47]} Rg8 {[%emt 0:02:58]} 30. h3 {[%emt 0:03:24]} Rf6 {[%emt 0:00:56]} 31. Rxf6 {[%emt 0:01:17]} exf6 {[%emt 0:00:23]} 32. a4 {[%emt 0:02:55]} Qc7 {[%emt 0:03:20]} 33. b3 {[%emt 0:00:45]} Qa5 {[%emt 0:00:15]} 34. Kg2 {[%emt 0:02:09]} Qc3 {[%emt 0:00:26]} 35. Re3 {[%emt 0:00:42]} Qb2+ {[%emt 0:01:05]} 36. Kf1 {[%emt 0:01:42]} Qc1+ {[%emt 0:03:08]} 37. Re1 {[%emt 0:02:16]} Qb2 {[%emt 0:00:54]} 38. Qf3 {[%emt 0:01:00]} c4 {[%emt 0:05:09]} 39. bxc4 {[%emt 0:00:50]} Rc8 {[%emt 0:00:11]} 40. Ne3 {[%emt 0:00:43]} Qa2 {[%emt 0:02:11]} 41. Qf5 {[%emt 0:30:30]} Rg8 {[%emt 0:02:24]} 42. Qc2 {[%emt 0:00:00]} Qa3 {[%emt 0:00:01]} 43. Kg2 {[%emt 0:00:00]} Rg5 {[%emt 0:02:21]} 44. Re2 {[%emt 0:00:00]} h5 {[%emt 0:05:29]} 45. Qa2 {[%emt 0:00:00]} Qd3 {[%emt 0:00:41]} 46. Qc2 {[%emt 0:00:00]} Qd4 {[%emt 0:00:26]} 47. h4 {[%emt 0:00:00]} Rxg4+ {[%emt 0:00:20]} 48. Nxg4 {[%emt 0:00:00]} Qxg4+ {[%emt 0:00:04]} 49. Kf1 {[%emt 0:00:00]} Qh3+ {[%emt 0:00:35]} 50. Rg2 {[%emt 0:00:00]} Qh1+ {[%emt 0:13:27]} 51. Rg1 {[%emt 0:00:00]} Qf3+ {[%emt 0:00:15]} 52. Qf2 {[%emt 0:00:00]} Qd1+ {[%emt 0:00:03]} 53. Kg2 {[%emt 0:00:00]} Qg4+ {[%emt 0:00:02]} 54. Kf1 {[%emt 0:00:00]} Qxc4+ {[%emt 0:05:12]} 55. Kg2 {[%emt 0:00:00]} Qg4+ {[%emt 0:00:21]} 56. Kf1 {[%emt 0:00:00]} Qd1+ {[%emt 0:03:04]} 57. Kg2 {[%emt 0:00:00]} Qxa4 {[%emt 0:03:03]} 58. Re1 {[%emt 0:00:00]} Qg4+ {[%emt 0:00:36]} 59. Kf1 {[%emt 0:00:00]} Qc4+ {[%emt 0:00:38]} 60. Re2 {[%emt 0:01:36]} Qxd5 {[%emt 0:00:24]} 61. Qxa7 {[%emt 0:00:37]} Qd1+ {[%emt 0:00:17]} 62. Re1 Qd3+ {[%emt 0:00:18]} 63. Re2 {[%emt 0:00:36]} Qh3+ {[%emt 0:02:12]} 64. Rg2 {[%emt 0:00:42]} Qd3+ {[%emt 0:00:05]} 65. Re2 {[%emt 0:00:14]} Qh3+ {[%emt 0:01:02]} 66. Rg2 {[%emt 0:00:08]} Qd3+ {[%emt 0:00:27]} 67. Re2 1/2-1/2

[Event "16th Deltalift Open 2019"]
[Site "Halmstad"]
[Date "2019.06.01"]
[Round "7.8"]
[White "Holst, Conny"]
[Black "Kucuksari, Kaan"]
[Result "0-1"]
[ECO "E40"]
[WhiteElo "2197"]
[BlackElo "2320"]
[Annotator "ChessBase"]
[PlyCount "88"]
[EventDate "2019.05.30"]
[EventType "swiss"]
[EventCountry "SWE"]
[SourceTitle "playchess.com"]
[Source "ChessBase"]
[SourceQuality "1"]
[TimeControl "40/5400+30:1800+30"]

1. d4 {[%emt 0:00:00]} Nf6 {[%emt 0:00:00]} 2. c4 {[%emt 0:00:00]} e6 {[%emt 0:00:00]} 3. Nc3 {[%emt 0:00:00]} Bb4 {[%emt 0:00:00]} 4. e3 {[%emt 0:00:13]} d5 {[%emt 0:00:00]} 5. Bd3 {[%emt 0:04:09]} O-O {[%emt 0:00:06]} 6. Nge2 {[%emt 0:00:49]} b6 {[%emt 0:01:02]} 7. O-O {[%emt 0:06:17]} Bb7 {[%emt 0:00:53]} 8. cxd5 {[%emt 0:01:24]} exd5 {[%emt 0:00:08]} 9. a3 {[%emt 0:00:58]} Bd6 {[%emt 0:00:05]} 10. b4 {[%emt 0:00:23]} Nbd7 {[%emt 0:00:07]} 11. b5 {[%emt 0:11:39]} a6 {[%emt 0:04:54]} 12. Bd2 {[%emt 0:09:52]} axb5 {[%emt 0:11:39]} 13. Nxb5 {[%emt 0:01:23]} Ba6 {[%emt 0:00:54]} 14. Bb4 {[%emt 0:05:44]} Bxb5 {[%emt 0:04:01]} 15. Bxb5 {[%emt 0:01:05]} c5 {[%emt 0:00:20]} 16. Bc3 {[%emt 0:06:02]} c4 {[%emt 0:05:37]} 17. a4 {[%emt 0:03:34]} Ne4 {[%emt 0:00:20]} 18. g3 {[%emt 0:08:51]} Ndf6 {[%emt 0:01:10]} 19. f3 {[%emt 0:01:25]} Ng5 {[%emt 0:00:21]} 20. Qd2 {[%emt 0:04:27]} Qc8 {[%emt 0:05:52]} 21. Bb4 {[%emt 0:06:44]} Bxb4 {[%emt 0:04:30]} 22. Qxb4 {[%emt 0:00:12]} Qf5 {[%emt 0:00:20]} 23. Nf4 {[%emt 0:05:15]} Nh3+ {[%emt 0:11:53]} 24. Nxh3 {[%emt 0:00:07]} Qxh3 {[%emt 0:00:01]} 25. Rae1 {[%emt 0:01:34]} Qe6 {[%emt 0:00:24]} 26. Qc3 {[%emt 0:01:15]} Rfd8 {[%emt 0:07:22]} 27. Kg2 {[%emt 0:00:37]} Ne8 {[%emt 0:04:30]} 28. e4 {[%emt 0:02:30]} Nd6 {[%emt 0:02:15]} 29. Bc6 {[%emt 0:02:28]} Nxe4 {[%emt 0:00:25]} 30. fxe4 {[%emt 0:01:27]} Qxc6 {[%emt 0:00:04]} 31. Qf3 {[%emt 0:04:30]} dxe4 {[%emt 0:13:04]} 32. Qxf7+ {[%emt 0:01:14]} Kh8 {[%emt 0:00:33]} 33. Rc1 {[%emt 0:02:57]} e3+ {[%emt 0:07:03]} 34. d5 {[%emt 0:03:23]} Qxa4 {[%emt 0:06:00]} 35. Rf4 {[%emt 0:01:35]} e2 {[%emt 0:04:16]} 36. Re1 {[%emt 0:02:19]} Qd1 {[%emt 0:02:15]} 37. Kf2 {[%emt 0:00:21]} Re8 {[%emt 0:00:36]} 38. d6 {[%emt 0:01:39]} Qxe1+ {[%emt 0:00:28]} 39. Kxe1 {[%emt 0:00:01]} Ra1+ {[%emt 0:00:06]} 40. Kf2 {[%emt 0:00:08]} e1=Q+ {[%emt 0:00:10]} 41. Kg2 {[%emt 0:30:04]} Raa8 {[%emt 0:36:14]} 42. Rg4 {[%emt 0:00:00]} Qd2+ {[%emt 0:00:00]} 43. Kh3 {[%emt 0:00:00]} Qh6+ {[%emt 0:00:00]} 44. Kg2 {[%emt 0:00:00]} Ra2+ {[%emt 0:00:00]} 0-1

[Event "16th Deltalift Open 2019"]
[Site "Halmstad"]
[Date "2019.06.01"]
[Round "7.9"]
[White "Bellon Lopez, Juan Manuel"]
[Black "Carlstrom, Niklas"]
[Result "1-0"]
[ECO "D02"]
[WhiteElo "2345"]
[BlackElo "2065"]
[Annotator "ChessBase"]
[PlyCount "67"]
[EventDate "2019.05.30"]
[EventType "swiss"]
[EventCountry "SWE"]
[SourceTitle "playchess.com"]
[Source "ChessBase"]
[SourceQuality "1"]
[TimeControl "40/5400+30:1800+30"]

1. d4 {[%emt 0:00:00]} d5 {[%emt 0:00:00]} 2. Nf3 {[%emt 0:00:05]} Nc6 {[%emt 0:00:02]} 3. c4 {[%emt 0:01:09]} Bg4 {[%emt 0:00:25]} 4. Nc3 {[%emt 0:01:35]} Bxf3 {[%emt 0:03:45]} 5. exf3 {[%emt 0:00:20]} e6 {[%emt 0:00:56]} 6. cxd5 {[%emt 0:01:25]} exd5 {[%emt 0:00:08]} 7. Bb5 {[%emt 0:00:04]} Bb4 {[%emt 0:02:21]} 8. Bxc6+ {[%emt 0:05:37]} bxc6 {[%emt 0:00:08]} 9. Qa4 {[%emt 0:00:03]} Bxc3+ {[%emt 0:02:26]} 10. bxc3 {[%emt 0:00:06]} Ne7 {[%emt 0:00:41]} 11. O-O {[%emt 0:01:51]} O-O {[%emt 0:05:03]} 12. Ba3 {[%emt 0:00:18]} Re8 {[%emt 0:05:26]} 13. Rfe1 {[%emt 0:03:27]} Nc8 {[%emt 0:24:12]} 14. Qxc6 {[%emt 0:00:28]} Nb6 {[%emt 0:00:45]} 15. g3 {[%emt 0:16:30]} h6 {[%emt 0:09:30]} 16. Kg2 {[%emt 0:02:01]} Qd7 {[%emt 0:07:12]} 17. Qxd7 {[%emt 0:01:45]} Nxd7 {[%emt 0:00:11]} 18. Rab1 {[%emt 0:00:38]} Nb6 {[%emt 0:01:33]} 19. Bc5 {[%emt 0:04:19]} Re6 {[%emt 0:04:10]} 20. f4 {[%emt 0:08:47]} Rae8 {[%emt 0:03:51]} 21. Re5 {[%emt 0:01:01]} f6 {[%emt 0:01:30]} 22. Rxe6 {[%emt 0:00:07]} Rxe6 {[%emt 0:00:06]} 23. Rb5 {[%emt 0:00:16]} a6 {[%emt 0:09:44]} 24. Rb4 {[%emt 0:05:26]} f5 {[%emt 0:00:39]} 25. h3 {[%emt 0:02:45]} Re2 {[%emt 0:04:08]} 26. Bxb6 {[%emt 0:00:37]} cxb6 {[%emt 0:00:06]} 27. Rxb6 {[%emt 0:01:52]} Rxa2 {[%emt 0:00:12]} 28. Rd6 {[%emt 0:00:40]} Rc2 {[%emt 0:03:58]} 29. Rd8+ {[%emt 0:05:08]} Kf7 {[%emt 0:01:21]} 30. Rxd5 {[%emt 0:00:04]} Rxc3 {[%emt 0:00:20]} 31. Rxf5+ {[%emt 0:00:05]} Kg8 {[%emt 0:01:06]} 32. Ra5 {[%emt 0:00:22]} Rd3 {[%emt 0:00:25]} 33. Ra4 {[%emt 0:00:22]} Kf7 {[%emt 0:01:42]} 34. Kf1 {[%emt 0:00:07]} 1-0

[Event "16th Deltalift Open 2019"]
[Site "Halmstad"]
[Date "2019.06.01"]
[Round "7.10"]
[White "Olund, Joar"]
[Black "Rasti, Arvin"]
[Result "1/2-1/2"]
[ECO "D41"]
[WhiteElo "2328"]
[BlackElo "2151"]
[Annotator "ChessBase"]
[PlyCount "107"]
[EventDate "2019.05.30"]
[EventType "swiss"]
[EventCountry "SWE"]
[SourceTitle "playchess.com"]
[Source "ChessBase"]
[SourceQuality "1"]
[TimeControl "40/5400+30:1800+30"]

1. d4 {[%emt 0:01:35]} d5 {[%emt 0:00:00]} 2. Nf3 {[%emt 0:00:08]} Nf6 {[%emt 0:00:00]} 3. c4 {[%emt 0:00:03]} e6 {[%emt 0:00:05]} 4. Nc3 {[%emt 0:00:05]} c5 {[%emt 0:00:20]} 5. cxd5 {[%emt 0:00:15]} cxd4 {[%emt 0:00:09]} 6. Nxd4 {[%emt 0:04:05]} Nxd5 {[%emt 0:00:08]} 7. Bd2 {[%emt 0:03:31]} Nc6 {[%emt 0:04:35]} 8. Nxc6 {[%emt 0:00:45]} bxc6 {[%emt 0:00:04]} 9. Rc1 {[%emt 0:04:12]} Be7 {[%emt 0:04:52]} 10. g3 {[%emt 0:02:23]} O-O {[%emt 0:02:51]} 11. Bg2 {[%emt 0:00:33]} Rb8 {[%emt 0:01:24]} 12. Na4 {[%emt 0:02:22]} Bf6 {[%emt 0:04:45]} 13. b3 {[%emt 0:01:01]} Qe7 {[%emt 0:08:33]} 14. O-O {[%emt 0:02:24]} Rd8 {[%emt 0:03:34]} 15. Qc2 {[%emt 0:00:12]} Ba6 {[%emt 0:05:06]} 16. Rfe1 {[%emt 0:09:00]} Bb7 {[%emt 0:14:44]} 17. Nc5 {[%emt 0:04:09]} Bd4 {[%emt 0:07:23]} 18. Nxb7 {[%emt 0:03:18]} Rxb7 {[%emt 0:00:14]} 19. e3 {[%emt 0:00:23]} Bb6 {[%emt 0:01:10]} 20. Qxc6 {[%emt 0:06:53]} Rc7 {[%emt 0:03:02]} 21. Qa4 {[%emt 0:04:23]} Rcd7 {[%emt 0:05:15]} 22. Bxd5 {[%emt 0:07:36]} Rxd5 {[%emt 0:00:09]} 23. Bc3 {[%emt 0:00:09]} e5 {[%emt 0:08:34]} 24. Qg4 {[%emt 0:02:08]} h6 {[%emt 0:04:21]} 25. Red1 {[%emt 0:05:00]} Qd6 {[%emt 0:00:52]} 26. Rxd5 {[%emt 0:01:41]} Qxd5 {[%emt 0:00:00]} 27. Qf5 {[%emt 0:09:02]} Re8 {[%emt 0:03:20]} 28. Bb4 {[%emt 0:03:54]} g6 {[%emt 0:01:30]} 29. Qg4 {[%emt 0:01:23]} Kg7 {[%emt 0:01:33]} 30. Rd1 {[%emt 0:01:13]} Qc6 {[%emt 0:02:40]} 31. Qd7 {[%emt 0:05:41]} Qxd7 {[%emt 0:02:27]} 32. Rxd7 {[%emt 0:00:02]} Rc8 {[%emt 0:00:20]} 33. Rd2 {[%emt 0:02:03]} Kf6 {[%emt 0:02:21]} 34. Kg2 {[%emt 0:00:57]} Rc7 {[%emt 0:01:26]} 35. Kf3 {[%emt 0:05:06]} Rc6 {[%emt 0:01:19]} 36. Rd6+ {[%emt 0:06:31]} Rxd6 {[%emt 0:00:14]} 37. Bxd6 {[%emt 0:00:01]} Ke6 {[%emt 0:00:33]} 38. Bf8 {[%emt 0:00:10]} h5 {[%emt 0:00:38]} 39. Ke4 {[%emt 0:01:27]} f5+ {[%emt 0:01:17]} 40. Kd3 {[%emt 0:00:09]} Kd5 {[%emt 0:00:42]} 41. b4 {[%emt 0:33:52]} a6 {[%emt 0:31:45]} 42. a4 {[%emt 0:00:32]} g5 {[%emt 0:02:26]} 43. h3 {[%emt 0:00:00]} g4 {[%emt 0:00:00]} 44. hxg4 {[%emt 0:00:00]} hxg4 {[%emt 0:00:00]} 45. Be7 {[%emt 0:00:00]} Ba7 {[%emt 0:00:00]} 46. Bd8 {[%emt 0:00:00]} f4 {[%emt 0:00:00]} 47. gxf4 {[%emt 0:00:00]} exf4 {[%emt 0:00:00]} 48. Bg5 {[%emt 0:00:00]} g3 {[%emt 0:00:00]} 49. Bxf4 {[%emt 0:00:39]} gxf2 {[%emt 0:00:00]} 50. e4+ {[%emt 0:01:18]} Kc6 {[%emt 0:00:00]} 51. Ke2 {[%emt 0:00:39]} Bd4 {[%emt 0:00:00]} 52. Bg3 {[%emt 0:00:13]} Bc3 {[%emt 0:00:00]} 53. Bxf2 {[%emt 0:00:13]} Bxb4 {[%emt 0:00:00]} 54. Kd3 {[%emt 0:00:27]} 1/2-1/2

[Event "16th Deltalift Open 2019"]
[Site "Halmstad"]
[Date "2019.06.01"]
[Round "7.11"]
[White "Lindborg, Patrik"]
[Black "Lindgren, Fredrik"]
[Result "0-1"]
[ECO "A57"]
[WhiteElo "2172"]
[BlackElo "2278"]
[Annotator "ChessBase"]
[PlyCount "80"]
[EventDate "2019.05.30"]
[EventType "swiss"]
[EventCountry "SWE"]
[SourceTitle "playchess.com"]
[Source "ChessBase"]
[SourceQuality "1"]
[TimeControl "40/5400+30:1800+30"]

1. d4 {[%emt 0:00:00]} Nf6 {[%emt 0:01:12]} 2. c4 {[%emt 0:00:00]} c5 {[%emt 0:00:12]} 3. d5 {[%emt 0:00:00]} a6 {[%emt 0:00:11]} 4. Nc3 {[%emt 0:03:52]} b5 {[%emt 0:00:13]} 5. cxb5 {[%emt 0:00:05]} axb5 {[%emt 0:00:06]} 6. e4 {[%emt 0:00:09]} b4 {[%emt 0:00:24]} 7. Nb5 {[%emt 0:00:06]} d6 {[%emt 0:00:40]} 8. Bf4 {[%emt 0:00:16]} g5 {[%emt 0:03:50]} 9. Bxg5 {[%emt 0:00:12]} Nxe4 {[%emt 0:00:10]} 10. Bf4 {[%emt 0:01:32]} Ra6 {[%emt 0:00:32]} 11. Bc4 {[%emt 0:12:12]} Bg7 {[%emt 0:01:34]} 12. Qe2 {[%emt 0:00:31]} Nf6 {[%emt 0:00:28]} 13. Nf3 {[%emt 0:05:48]} O-O {[%emt 0:01:40]} 14. O-O {[%emt 0:00:34]} Ra5 {[%emt 0:19:07]} 15. a4 {[%emt 0:10:54]} bxa3 {[%emt 0:02:34]} 16. Rxa3 {[%emt 0:00:11]} Ba6 {[%emt 0:02:42]} 17. Rd1 {[%emt 0:14:42]} Rxa3 {[%emt 0:53:08]} 18. bxa3 {[%emt 0:00:33]} Qa5 {[%emt 0:01:15]} 19. Nh4 {[%emt 0:04:12]} Qa4 {[%emt 0:03:18]} 20. Bg5 {[%emt 0:06:10]} Nbd7 {[%emt 0:02:12]} 21. Nxd6 {[%emt 0:11:49]} exd6 {[%emt 0:00:05]} 22. Bxa6 {[%emt 0:00:05]} Re8 {[%emt 0:00:17]} 23. Qd3 {[%emt 0:02:21]} Ne5 {[%emt 0:02:31]} 24. Qf1 {[%emt 0:08:36]} c4 {[%emt 0:00:32]} 25. f4 {[%emt 0:01:43]} Neg4 {[%emt 0:01:39]} 26. Re1 {[%emt 0:06:51]} Qxa6 {[%emt 0:01:06]} 27. Rxe8+ {[%emt 0:01:06]} Nxe8 {[%emt 0:00:03]} 28. h3 {[%emt 0:00:33]} Qa7+ {[%emt 0:01:09]} 29. Kh1 {[%emt 0:00:07]} Ne3 {[%emt 0:01:00]} 30. Qe2 {[%emt 0:02:52]} f6 {[%emt 0:00:34]} 31. Nf5 {[%emt 0:00:54]} fxg5 {[%emt 0:00:21]} 32. Nxe3 {[%emt 0:00:35]} Qe7 {[%emt 0:00:33]} 33. Qf3 {[%emt 0:01:11]} Bd4 {[%emt 0:00:22]} 34. Nc2 {[%emt 0:01:52]} Bc5 {[%emt 0:00:31]} 35. fxg5 {[%emt 0:00:51]} Qxg5 {[%emt 0:00:30]} 36. Qe4 {[%emt 0:02:18]} Qc1+ {[%emt 0:00:29]} 37. Kh2 {[%emt 0:00:14]} Qg1+ {[%emt 0:00:22]} 38. Kg3 {[%emt 0:00:01]} Qf2+ {[%emt 0:00:46]} 39. Kh2 {[%emt 0:00:04]} Nf6 {[%emt 0:00:39]} 40. Qe6+ {[%emt 0:01:37]} Kg7 {[%emt 0:00:18]} 0-1

[Event "16th Deltalift Open 2019"]
[Site "Halmstad"]
[Date "2019.06.01"]
[Round "7.12"]
[White "Johnson, Daniel"]
[Black "Ivarsson, Sebastian"]
[Result "0-1"]
[ECO "E81"]
[WhiteElo "2233"]
[BlackElo "2013"]
[Annotator "ChessBase"]
[PlyCount "146"]
[EventDate "2019.05.30"]
[EventType "swiss"]
[EventCountry "SWE"]
[SourceTitle "playchess.com"]
[Source "ChessBase"]
[SourceQuality "1"]
[TimeControl "40/5400+30:1800+30"]

1. d4 {[%emt 0:17:09]} Nf6 {[%emt 0:00:00]} 2. c4 {[%emt 0:00:05]} g6 {[%emt 0:00:03]} 3. Nc3 {[%emt 0:00:06]} Bg7 {[%emt 0:00:31]} 4. e4 {[%emt 0:00:06]} d6 {[%emt 0:00:06]} 5. f3 {[%emt 0:00:10]} O-O {[%emt 0:01:02]} 6. Nge2 {[%emt 0:00:08]} c5 {[%emt 0:00:08]} 7. d5 {[%emt 0:00:04]} e6 {[%emt 0:00:41]} 8. Ng3 {[%emt 0:00:36]} exd5 {[%emt 0:00:38]} 9. cxd5 {[%emt 0:00:07]} a6 {[%emt 0:01:26]} 10. a4 {[%emt 0:00:08]} Nbd7 {[%emt 0:03:42]} 11. Be2 {[%emt 0:00:25]} h5 {[%emt 0:02:10]} 12. Bg5 {[%emt 0:02:00]} Qc7 {[%emt 0:03:36]} 13. O-O {[%emt 0:05:57]} Nh7 {[%emt 0:04:31]} 14. Be3 {[%emt 0:00:58]} h4 {[%emt 0:06:14]} 15. Nh1 {[%emt 0:00:31]} f5 {[%emt 0:02:32]} 16. Qd2 {[%emt 0:05:36]} Qd8 {[%emt 0:05:55]} 17. Nf2 {[%emt 0:06:48]} Re8 {[%emt 0:02:09]} 18. Nh3 {[%emt 0:14:14]} Ne5 {[%emt 0:02:54]} 19. Ng5 {[%emt 0:06:48]} Bf6 {[%emt 0:05:01]} 20. Nxh7 {[%emt 0:07:01]} Kxh7 {[%emt 0:00:06]} 21. h3 {[%emt 0:00:38]} Qe7 {[%emt 0:05:20]} 22. Rae1 {[%emt 0:14:15]} Bd7 {[%emt 0:03:36]} 23. exf5 {[%emt 0:06:37]} Bxf5 {[%emt 0:01:14]} 24. Ne4 {[%emt 0:04:19]} Bxe4 {[%emt 0:01:57]} 25. fxe4 {[%emt 0:00:06]} Nf7 {[%emt 0:01:32]} 26. Bg4 {[%emt 0:01:59]} b5 {[%emt 0:03:53]} 27. Be6 {[%emt 0:03:38]} Nd8 {[%emt 0:01:35]} 28. Bg4 {[%emt 0:02:53]} Qg7 {[%emt 0:09:50]} 29. Rxf6 {[%emt 0:00:32]} Qxf6 {[%emt 0:00:35]} 30. Rf1 {[%emt 0:00:29]} Qe7 {[%emt 0:04:16]} 31. Qf2 {[%emt 0:00:26]} bxa4 {[%emt 0:03:12]} 32. Qf4 {[%emt 0:00:25]} Qxe4 {[%emt 0:00:35]} 33. Qh6+ {[%emt 0:00:26]} Kg8 {[%emt 0:00:04]} 34. Bg5 {[%emt 0:00:42]} Qd4+ {[%emt 0:11:29]} 35. Kh1 {[%emt 0:00:17]} Nf7 {[%emt 0:00:46]} 36. Qxg6+ {[%emt 0:00:48]} Qg7 {[%emt 0:00:05]} 37. Qxg7+ {[%emt 0:00:30]} Kxg7 {[%emt 0:00:06]} 38. Bxh4 {[%emt 0:00:29]} Ne5 {[%emt 0:01:49]} 39. Bd1 {[%emt 0:00:30]} Rf8 {[%emt 0:01:07]} 40. Rg1 {[%emt 0:00:32]} Rfb8 {[%emt 0:01:01]} 41. Be7 {[%emt 0:07:02]} Nc4 {[%emt 0:02:06]} 42. Bxa4 {[%emt 0:01:56]} Rxb2 {[%emt 0:00:31]} 43. Rf1 {[%emt 0:01:49]} Re2 {[%emt 0:01:00]} 44. Bf6+ {[%emt 0:01:41]} Kg6 {[%emt 0:01:32]} 45. Bc3 {[%emt 0:07:07]} Rb8 {[%emt 0:04:33]} 46. Bd1 {[%emt 0:01:26]} Ra2 {[%emt 0:01:49]} 47. h4 {[%emt 0:01:58]} Ne3 {[%emt 0:03:01]} 48. Rf6+ {[%emt 0:03:48]} Kh7 {[%emt 0:00:38]} 49. Bf3 {[%emt 0:00:30]} Ra4 {[%emt 0:14:50]} 50. Rf7+ Kg8 {[%emt 0:01:10]} 51. Rg7+ {[%emt 0:04:40]} Kf8 {[%emt 0:00:06]} 52. Rh7 {[%emt 0:02:18]} Rb1+ {[%emt 0:02:18]} 53. Kh2 {[%emt 0:00:11]} Ra3 {[%emt 0:01:50]} 54. Bf6 {[%emt 0:01:26]} Nf1+ {[%emt 0:01:22]} 55. Kh3 {[%emt 0:01:26]} Nd2 {[%emt 0:00:54]} 56. Kg4 {[%emt 0:00:35]} Nxf3 {[%emt 0:00:09]} 57. gxf3 {[%emt 0:00:31]} Rg1+ {[%emt 0:00:36]} 58. Kf4 {[%emt 0:00:36]} Rf1 {[%emt 0:00:45]} 59. Bg5 {[%emt 0:00:29]} Raxf3+ {[%emt 0:03:04]} 60. Ke4 {[%emt 0:00:17]} Rf5 {[%emt 0:01:06]} 61. Ra7 {[%emt 0:00:40]} Re5+ {[%emt 0:00:21]} 62. Kd3 {[%emt 0:00:06]} Rxd5+ {[%emt 0:00:35]} 63. Ke4 {[%emt 0:00:35]} Re5+ {[%emt 0:01:55]} 64. Kd3 {[%emt 0:00:06]} Rf3+ {[%emt 0:00:17]} 65. Kc4 {[%emt 0:00:29]} Ra3 {[%emt 0:01:47]} 66. Bf6 {[%emt 0:00:34]} Ra4+ {[%emt 0:01:08]} 67. Kb3 {[%emt 0:00:37]} Rb4+ {[%emt 0:00:48]} 68. Kc3 {[%emt 0:00:07]} Re3+ {[%emt 0:00:28]} 69. Kd2 {[%emt 0:00:11]} Ra3 {[%emt 0:00:12]} 70. h5 {[%emt 0:00:21]} Rf4 {[%emt 0:00:59]} 71. Bg7+ {[%emt 0:01:05]} Kg8 {[%emt 0:00:05]} 72. h6 {[%emt 0:01:08]} Rf2+ {[%emt 0:00:09]} 73. Kd1 {[%emt 0:00:25]} Rh3 {[%emt 0:00:34]} 0-1

[Event "16th Deltalift Open 2019"]
[Site "Halmstad"]
[Date "2019.06.01"]
[Round "7.14"]
[White "Holm, Ragnar"]
[Black "Wahlstrom, Lennart"]
[Result "1-0"]
[ECO "D34"]
[WhiteElo "2124"]
[BlackElo "2196"]
[Annotator "ChessBase"]
[PlyCount "119"]
[EventDate "2019.05.30"]
[EventType "swiss"]
[EventCountry "SWE"]
[SourceTitle "playchess.com"]
[Source "ChessBase"]
[SourceQuality "1"]
[TimeControl "40/5400+30:1800+30"]

1. d4 {[%emt 0:00:00]} d5 {[%emt 0:00:00]} 2. c4 {[%emt 0:00:00]} e6 {[%emt 0:00:00]} 3. Nf3 {[%emt 0:00:13]} c5 {[%emt 0:00:00]} 4. cxd5 {[%emt 0:00:28]} exd5 {[%emt 0:00:00]} 5. Nc3 {[%emt 0:00:21]} Nc6 {[%emt 0:00:06]} 6. g3 {[%emt 0:00:24]} Nf6 {[%emt 0:00:12]} 7. Bg2 {[%emt 0:00:13]} Be7 {[%emt 0:00:15]} 8. O-O {[%emt 0:00:21]} O-O {[%emt 0:00:12]} 9. Bg5 {[%emt 0:00:43]} cxd4 {[%emt 0:00:22]} 10. Nxd4 {[%emt 0:00:18]} Re8 {[%emt 0:00:46]} 11. Rc1 {[%emt 0:01:36]} Be6 {[%emt 0:02:52]} 12. Qa4 {[%emt 0:12:46]} Qb6 {[%emt 0:02:10]} 13. Nb3 {[%emt 0:09:44]} Rad8 {[%emt 0:01:38]} 14. Qb5 {[%emt 0:11:41]} d4 {[%emt 0:33:55]} 15. Qxb6 {[%emt 0:00:07]} axb6 {[%emt 0:00:06]} 16. Nb5 {[%emt 0:00:59]} Bxb3 {[%emt 0:01:41]} 17. axb3 {[%emt 0:00:15]} Bc5 {[%emt 0:02:39]} 18. Rc2 {[%emt 0:12:24]} Rd7 {[%emt 0:02:10]} 19. Bxf6 {[%emt 0:08:12]} gxf6 {[%emt 0:00:10]} 20. Rd1 {[%emt 0:00:53]} Re5 {[%emt 0:25:41]} 21. Rcd2 {[%emt 0:08:53]} Kg7 {[%emt 0:22:08]} 22. Kf1 {[%emt 0:01:59]} Re8 {[%emt 0:00:45]} 23. Bxc6 {[%emt 0:01:14]} bxc6 {[%emt 0:00:02]} 24. Nxd4 {[%emt 0:00:15]} Bxd4 {[%emt 0:01:31]} 25. Rxd4 {[%emt 0:00:08]} Rxd4 {[%emt 0:00:30]} 26. Rxd4 {[%emt 0:00:07]} Re5 {[%emt 0:00:51]} 27. Ke1 {[%emt 0:07:26]} Kf8 {[%emt 0:00:53]} 28. Rd6 {[%emt 0:04:18]} Rb5 {[%emt 0:00:10]} 29. Rxc6 {[%emt 0:00:14]} Rxb3 {[%emt 0:00:06]} 30. Rc2 {[%emt 0:00:51]} Ke7 {[%emt 0:00:38]} 31. Kd2 {[%emt 0:01:19]} f5 {[%emt 0:00:10]} 32. Kc1 {[%emt 0:00:23]} Kf6 {[%emt 0:00:12]} 33. Rc4 {[%emt 0:01:49]} h5 {[%emt 0:00:22]} 34. h4 {[%emt 0:00:43]} Ke5 {[%emt 0:00:14]} 35. Kc2 {[%emt 0:01:12]} Rb5 {[%emt 0:00:09]} 36. Rc7 {[%emt 0:00:45]} f4 {[%emt 0:01:40]} 37. Rxf7 {[%emt 0:01:33]} fxg3 {[%emt 0:00:10]} 38. fxg3 {[%emt 0:00:06]} Ke4 {[%emt 0:02:08]} 39. Rg7 {[%emt 0:01:04]} Rc5+ {[%emt 0:01:10]} 40. Kb1 {[%emt 0:01:18]} Ke3 {[%emt 0:00:14]} 41. Rg5 {[%emt 0:30:46]} Kxe2 {[%emt 0:01:20]} 42. b4 {[%emt 0:00:00]} Rc3 {[%emt 0:00:32]} 43. Kb2 {[%emt 0:00:00]} Re3 {[%emt 0:05:50]} 44. Rxh5 {[%emt 0:00:00]} Rxg3 {[%emt 0:00:11]} 45. Rb5 {[%emt 0:00:00]} Kd3 {[%emt 0:15:51]} 46. Kb3 {[%emt 0:00:00]} Kd4+ {[%emt 0:00:37]} 47. Ka4 {[%emt 0:00:00]} Rh3 {[%emt 0:02:35]} 48. Rxb6 {[%emt 0:00:00]} Rxh4 {[%emt 0:00:08]} 49. Rc6 {[%emt 0:00:00]} Kd5 {[%emt 0:01:24]} 50. Rc2 {[%emt 0:00:00]} Kd6 {[%emt 0:00:32]} 51. Ka5 {[%emt 0:00:08]} Rh1 {[%emt 0:01:51]} 52. Kb6 {[%emt 0:01:19]} Kd7 {[%emt 0:00:49]} 53. b5 {[%emt 0:00:16]} Ra1 {[%emt 0:00:49]} 54. Kb7 {[%emt 0:00:14]} Ra3 {[%emt 0:00:18]} 55. Rd2+ {[%emt 0:03:06]} Ke7 {[%emt 0:00:03]} 56. b6 {[%emt 0:00:22]} Ra1 {[%emt 0:00:47]} 57. Kb8 {[%emt 0:01:19]} Ra3 {[%emt 0:00:35]} 58. b7 {[%emt 0:01:37]} Ra1 {[%emt 0:00:46]} 59. Rd4 {[%emt 0:00:56]} Ra2 60. Kc7 1-0